fUSD/lending_fUSD_20250617
["ID","MTS","AMOUNT","RATE_DAILY","PERIOD"]
[366234977,1750148124798,-2178.62895063,0.00015772,2]
[366234978,1750148124821,-150.0,0.0001578,2]
[366234979,1750148124843,-354.38951185,0.000159,2]
[366234980,1750148124868,-2100.0,0.000159,5]
[366234981,1750148124892,-1200.0,0.000159,5]
[366234982,1750148124915,-152.35,0.000159,2]
[366234983,1750148124947,-1208.9926764,0.000159,2]
[366234984,1750148124979,-1208.99267636,0.000159,2]
[366234985,1750148125010,-1208.99267636,0.000159,2]
[366234986,1750148125040,-1208.99267636,0.000159,2]
[366234987,1750148125069,-1208.99267636,0.000159,2]
[366234988,1750148125102,-1208.99267636,0.000159,2]
[366234989,1750148125131,-642.5071502,0.000159,2]
[366234990,1750148130765,150.0,0.00019023,120]
[366234992,1750148157463,-200.0,0.00014632,2]
[366234993,1750148157488,-2111.2608176,0.000159,2]
[366234994,1750148157515,-1765.06108635,0.000159,2]
[366234995,1750148157540,-1765.0610862,0.000159,2]
[366234996,1750148157565,-1765.0610862,0.000159,2]
[366234997,1750148157592,-1765.0610862,0.000159,2]
[366234998,1750148157617,-1765.0610862,0.000159,2]
[366234999,1750148157640,-1765.0610862,0.000159,2]
[366235000,1750148157665,-1765.0610862,0.000159,2]
[366235001,1750148157693,-1765.0610862,0.000159,2]
[366235002,1750148157716,-1765.0610862,0.000159,2]
[366235003,1750148157740,-500.0,0.00015904,2]
[366235004,1750148157763,-150.0,0.00015906,2]
[366235005,1750148157786,-6509.69234256,0.00015912,2]
[366235006,1750148157815,-1765.0610862,0.00015964,2]
[366235007,1750148157837,-166.64,0.00015968,2]
[366235008,1750148157858,-541.54,0.00016,2]
[366235009,1750148157880,-541.54,0.00016,2]
[366235010,1750148157902,-541.54,0.00016,2]
[366235011,1750148157926,-541.54,0.00016,2]
[366235012,1750148157949,-541.54,0.00016,2]
[366235013,1750148157971,-150.0,0.00016032,2]
[366235014,1750148157993,-1765.0610862,0.00016058,2]
[366235015,1750148158016,-6509.69234256,0.0001611,2]
[366235016,1750148158038,-330.09843151,0.00016151,2]
[366235017,1750148158060,-1765.0610862,0.00016151,2]
[366235018,1750148158082,-167.2,0.00016155,2]
[366235019,1750148158104,-150.0,0.00016158,2]
[366235020,1750148158126,-2500.0,0.00016164,2]
[366235021,1750148158149,-1079.0,0.00016198,2]
[366235022,1750148158172,-2111.2608176,0.00016233,2]
[366235023,1750148158195,-1765.0610862,0.00016245,2]
[366235024,1750148158218,-150.0,0.00016285,2]
[366235025,1750148158241,-2800.0,0.000163,5]
[366235026,1750148158269,-1700.0,0.000163,5]
[366235027,1750148158293,-6509.69234256,0.00016307,2]
[366235028,1750148158319,-168.0,0.00016321,2]
[366235029,1750148158348,-290.14094283,0.00016337,2]
[366235030,1750148158371,-637.95958571,0.00016338,2]
[366235031,1750148158394,-157.10211442,0.00016338,2]
[366235032,1750148158417,-1765.0610862,0.00016339,2]
[366235033,1750148158440,-464.13230389,0.0001637,2]
[366235034,1750148158466,-2143.28801119,0.00016373,2]
[366235035,1750148158493,-602.22787283,0.00016374,2]
[366235036,1750148158517,-426.506,0.00016374,2]
[366235037,1750148158542,-583.7,0.00016374,2]
[366235038,1750148158566,-7113.0,0.00016374,2]
[366235039,1750148158591,-4091.0,0.00016374,2]
[366235040,1750148158615,-155.0,0.00016374,2]
[366235041,1750148158640,-602.22787283,0.00016376,2]
[366235042,1750148158666,-168.0,0.00016381,2]
[366235043,1750148158694,-602.22787283,0.00016381,2]
[366235044,1750148158719,-602.22787283,0.00016382,2]
[366235045,1750148158744,-2143.28801119,0.00016383,2]
[366235046,1750148158766,-200.0,0.00016384,2]
[366235047,1750148158789,-390.10273032,0.00016387,2]
[366235048,1750148158812,-200.0,0.00016389,2]
[366235049,1750148158834,-200.0,0.00016391,2]
[366235050,1750148158870,-203.79883612,0.00016392,2]
[366235051,1750148158895,-276.52317383,0.00016392,2]
[366235052,1750148158919,-602.22787283,0.00016392,2]
[366235053,1750148158942,-203.79883612,0.00016395,2]
[366235054,1750148158966,-602.22787283,0.00016397,2]
[366235055,1750148158992,-2052.83791423,0.00016398,2]
[366235056,1750148159017,-2052.83791423,0.00016399,2]
[366235057,1750148159041,-290.14094277,0.000164,2]
[366235058,1750148159064,-354.38951185,0.000164,2]
[366235059,1750148159089,-3600.0,0.000164,5]
[366235060,1750148159114,-2100.0,0.000164,5]
[366235061,1750148159138,-628.0,0.000164,2]
[366235062,1750148159163,-203.79883612,0.00016401,2]
[366235063,1750148159188,-385.49563346,0.00016402,2]
[366235064,1750148159213,-464.13230389,0.00016404,2]
[366235065,1750148159241,-2143.28801119,0.00016405,2]
[366235066,1750148159266,-390.10273032,0.00016407,2]
[366235067,1750148159289,-200.0,0.00016407,2]
[366235068,1750148159314,-390.10273032,0.00016408,2]
[366235069,1750148159339,-203.79883612,0.00016409,2]
[366235070,1750148159369,-150.0,0.00016411,2]
[366235071,1750148159394,-150.0,0.00016411,2]
[366235072,1750148159419,-385.49563346,0.00016414,2]
[366235073,1750148159446,-276.52317383,0.00016414,2]
[366235074,1750148159472,-390.10273032,0.00016421,2]
[366235075,1750148159502,-602.22787283,0.00016423,2]
[366235076,1750148159527,-385.49563346,0.00016424,2]
[366235077,1750148159554,-390.10273032,0.00016424,2]
[366235078,1750148159581,-2143.28801119,0.0001643,2]
[366235079,1750148159608,-1765.0610862,0.00016432,2]
[366235080,1750148159635,-2052.83791423,0.00016433,2]
[366235081,1750148159660,-200.0,0.00016433,2]
[366235082,1750148159686,-276.52317383,0.00016433,2]
[366235083,1750148159712,-200.0,0.00016433,2]
[366235084,1750148159738,-1123.89794242,0.00016437,5]
[366235085,1750148159764,-203.79883612,0.00016437,2]
[366235086,1750148159789,-1043.0,0.00016438,2]
[366235087,1750148159814,-200.0,0.00016438,2]
[366235088,1750148159837,-18121.7981384,0.00016438,2]
[366235089,1750148159875,-119439.12167495,0.00016438,2]
[366235091,1750148195379,-167.07,0.00013033,2]
[366235092,1750148195402,-167.07,0.00015184,2]
[366235093,1750148195428,-202.0,0.00015336,2]
[366235094,1750148195453,-600.0,0.000158,5]
[366235095,1750148195476,-264.49267753,0.000159,2]
[366235096,1750148195503,-1300.0,0.000159,5]
[366235097,1750148195529,-250.0,0.00016104,2]
[366235098,1750148195557,-202.0,0.00016106,3]
[366235099,1750148195583,-1900.0,0.000162,5]
[366235100,1750148195607,-250.0,0.00016241,2]
[366235101,1750148195631,-2600.0,0.000163,5]
[366235102,1750148195657,-3200.0,0.000164,5]
[366235103,1750148195680,-932.0,0.00016438,2]
[366235104,1750148195703,-166.670503,0.00016438,2]
[366235105,1750148195726,-490.0,0.00016438,2]
[366235106,1750148195748,-328.97121459,0.00016438,2]
[366235107,1750148195770,-490.0,0.00016438,2]
[366235108,1750148195792,-490.0,0.00016438,2]
[366235109,1750148195813,-490.0,0.00016438,2]
[366235110,1750148195836,-490.0,0.00016438,2]
[366235111,1750148195859,-490.0,0.00016438,2]
[366235112,1750148195882,-490.0,0.00016438,2]
[366235113,1750148195904,-490.0,0.00016438,2]
[366235114,1750148195926,-490.0,0.00016438,2]
[366235115,1750148195947,-490.0,0.00016438,2]
[366235116,1750148195970,-490.0,0.00016438,2]
[366235117,1750148195994,-494.39771913,0.00016438,2]
[366235118,1750148196016,-490.0,0.00016438,2]
[366235119,1750148196055,-490.0,0.00016438,2]
[366235120,1750148196080,-490.0,0.00016438,2]
[366235121,1750148196105,-490.0,0.00016438,2]
[366235122,1750148196128,-490.0,0.00016438,2]
[366235123,1750148196151,-490.0,0.00016438,2]
[366235124,1750148196175,-490.0,0.00016438,2]
[366235125,1750148196197,-490.0,0.00016438,2]
[366235126,1750148196222,-490.0,0.00016438,2]
[366235127,1750148196245,-490.0,0.00016438,2]
[366235128,1750148196269,-490.0,0.00016438,2]
[366235129,1750148196296,-490.0,0.00016438,2]
[366235130,1750148196320,-422.05225712,0.00016438,2]
[366235131,1750148196344,-490.0,0.00016438,2]
[366235132,1750148196368,-490.0,0.00016438,2]
[366235133,1750148196392,-490.0,0.00016438,2]
[366235134,1750148196415,-490.0,0.00016438,2]
[366235135,1750148196439,-490.0,0.00016438,2]
[366235136,1750148196464,-490.0,0.00016438,2]
[366235137,1750148196487,-490.0,0.00016438,2]
[366235138,1750148196517,-490.0,0.00016438,2]
[366235139,1750148196542,-490.0,0.00016438,2]
[366235140,1750148196568,-490.0,0.00016438,2]
[366235141,1750148196601,-490.0,0.00016438,2]
[366235142,1750148196627,-490.0,0.00016438,2]
[366235143,1750148196651,-490.0,0.00016438,2]
[366235144,1750148196678,-490.0,0.00016438,2]
[366235145,1750148196703,-490.0,0.00016438,2]
[366235146,1750148196728,-490.0,0.00016438,2]
[366235147,1750148196757,-490.0,0.00016438,2]
[366235148,1750148196781,-490.0,0.00016438,2]
[366235149,1750148196805,-490.0,0.00016438,2]
[366235150,1750148196830,-490.0,0.00016438,2]
[366235151,1750148196853,-490.0,0.00016438,2]
[366235152,1750148196876,-490.0,0.00016438,2]
[366235153,1750148196900,-490.0,0.00016438,2]
[366235154,1750148196925,-490.0,0.00016438,2]
[366235155,1750148196949,-490.0,0.00016438,2]
[366235156,1750148196974,-490.0,0.00016438,2]
[366235157,1750148196999,-490.0,0.00016438,2]
[366235158,1750148197023,-490.0,0.00016438,2]
[366235159,1750148197048,-490.0,0.00016438,2]
[366235160,1750148197072,-490.0,0.00016438,2]
[366235161,1750148197100,-499.48824707,0.00016438,2]
[366235162,1750148197124,-490.0,0.00016438,2]
[366235163,1750148197147,-490.0,0.00016438,2]
[366235164,1750148197170,-490.0,0.00016438,2]
[366235165,1750148197194,-490.0,0.00016438,2]
[366235166,1750148197217,-490.0,0.00016438,2]
[366235167,1750148197241,-490.0,0.00016438,2]
[366235168,1750148197267,-490.0,0.00016438,2]
[366235169,1750148197291,-380.77286727,0.00016438,2]
[366235170,1750148197314,-490.0,0.00016438,2]
[366235171,1750148197337,-246.67427553,0.00016438,2]
[366235172,1750148197361,-490.0,0.00016438,2]
[366235173,1750148197385,-568.11432356,0.00016438,2]
[366235174,1750148197409,-490.0,0.00016438,2]
[366235175,1750148197432,-490.0,0.00016438,2]
[366235176,1750148197457,-490.0,0.00016438,2]
[366235177,1750148197483,-490.0,0.00016438,2]
[366235178,1750148197510,-189.86363765,0.00016438,2]
[366235179,1750148197535,-490.0,0.00016438,2]
[366235180,1750148197560,-563.91,0.00016438,2]
[366235181,1750148197585,-490.0,0.00016438,2]
[366235182,1750148197610,-490.0,0.00016438,2]
[366235183,1750148197634,-490.0,0.00016438,2]
[366235184,1750148197667,-490.0,0.00016438,2]
[366235185,1750148197692,-520.63479339,0.00016438,2]
[366235186,1750148197717,-490.0,0.00016438,2]
[366235187,1750148197741,-490.0,0.00016438,2]
[366235188,1750148197767,-490.0,0.00016438,2]
[366235189,1750148197791,-490.0,0.00016438,2]
[366235190,1750148197816,-490.0,0.00016438,2]
[366235191,1750148197840,-490.0,0.00016438,2]
[366235192,1750148197864,-490.0,0.00016438,2]
[366235193,1750148197888,-490.0,0.00016438,2]
[366235194,1750148197913,-490.0,0.00016438,2]
[366235195,1750148197937,-490.0,0.00016438,2]
[366235196,1750148197960,-490.0,0.00016438,2]
[366235197,1750148197983,-490.0,0.00016438,2]
[366235198,1750148198010,-490.0,0.00016438,2]
[366235199,1750148198033,-490.0,0.00016438,2]
[366235200,1750148198056,-500.0,0.00016438,2]
[366235201,1750148198081,-500.0,0.00016438,2]
[366235202,1750148198106,-490.0,0.00016438,2]
[366235203,1750148198129,-490.0,0.00016438,2]
[366235204,1750148198152,-490.0,0.00016438,2]
[366235205,1750148198175,-490.0,0.00016438,2]
[366235206,1750148198203,-490.0,0.00016438,2]
[366235207,1750148198229,-490.0,0.00016438,2]
[366235208,1750148198252,-490.0,0.00016438,2]
[366235209,1750148198594,-490.0,0.00016438,2]
[366235210,1750148198622,-490.0,0.00016438,2]
[366235211,1750148198648,-490.0,0.00016438,2]
[366235212,1750148198676,-490.0,0.00016438,2]
[366235213,1750148198700,-500.0,0.00016438,2]
[366235214,1750148198725,-492.69174202,0.00016438,2]
[366235215,1750148198751,-490.0,0.00016438,2]
[366235216,1750148198778,-490.0,0.00016438,2]
[366235217,1750148198803,-573.66454515,0.00016438,2]
[366235218,1750148198830,-490.0,0.00016438,2]
[366235219,1750148198856,-490.0,0.00016438,2]
[366235220,1750148198881,-490.0,0.00016438,2]
[366235221,1750148198905,-490.0,0.00016438,2]
[366235222,1750148198930,-490.0,0.00016438,2]
[366235223,1750148198954,-490.0,0.00016438,2]
[366235224,1750148198977,-490.0,0.00016438,2]
[366235225,1750148199000,-500.0,0.00016438,2]
[366235226,1750148199026,-500.0,0.00016438,2]
[366235227,1750148199049,-490.0,0.00016438,2]
[366235228,1750148199073,-266.58323733,0.00016438,2]
[366235229,1750148199097,-490.0,0.00016438,2]
[366235230,1750148199119,-490.0,0.00016438,2]
[366235231,1750148199144,-490.0,0.00016438,2]
[366235232,1750148199166,-490.0,0.00016438,2]
[366235233,1750148199189,-209.65555912,0.00016438,2]
[366235234,1750148199212,-490.0,0.00016438,2]
[366235235,1750148199237,-490.0,0.00016438,2]
[366235236,1750148199263,-490.0,0.00016438,2]
[366235237,1750148199288,-490.0,0.00016438,2]
[366235238,1750148199310,-490.0,0.00016438,2]
[366235239,1750148199334,-490.0,0.00016438,2]
[366235240,1750148199359,-490.0,0.00016438,2]
[366235241,1750148199384,-490.0,0.00016438,2]
[366235242,1750148199406,-490.0,0.00016438,2]
[366235243,1750148199433,-490.0,0.00016438,2]
[366235244,1750148199456,-490.0,0.00016438,2]
[366235245,1750148199482,-490.0,0.00016438,2]
[366235246,1750148199511,-490.0,0.00016438,2]
[366235247,1750148199536,-490.0,0.00016438,2]
[366235248,1750148199562,-490.0,0.00016438,2]
[366235249,1750148199587,-490.0,0.00016438,2]
[366235250,1750148199612,-490.0,0.00016438,2]
[366235251,1750148199637,-490.0,0.00016438,2]
[366235252,1750148199660,-490.0,0.00016438,2]
[366235253,1750148199686,-490.0,0.00016438,2]
[366235254,1750148199708,-490.0,0.00016438,2]
[366235255,1750148199732,-490.0,0.00016438,2]
[366235256,1750148199756,-490.0,0.00016438,2]
[366235257,1750148199782,-490.0,0.00016438,2]
[366235258,1750148199804,-218.33934159,0.00016438,2]
[366235259,1750148199830,-490.0,0.00016438,2]
[366235260,1750148199851,-490.0,0.00016438,2]
[366235261,1750148199873,-490.0,0.00016438,2]
[366235262,1750148199895,-490.0,0.00016438,2]
[366235263,1750148199917,-480.0,0.00016438,2]
[366235264,1750148199941,-490.0,0.00016438,2]
[366235265,1750148199963,-490.0,0.00016438,2]
[366235266,1750148199985,-490.0,0.00016438,2]
[366235267,1750148200009,-566.34881931,0.00016438,2]
[366235268,1750148200033,-490.0,0.00016438,2]
[366235269,1750148200054,-490.0,0.00016438,2]
[366235270,1750148200079,-490.0,0.00016438,2]
[366235271,1750148200103,-490.0,0.00016438,2]
[366235272,1750148200125,-490.0,0.00016438,2]
[366235273,1750148200147,-490.0,0.00016438,2]
[366235274,1750148200170,-490.0,0.00016438,2]
[366235275,1750148200194,-490.0,0.00016438,2]
[366235276,1750148200216,-490.0,0.00016438,2]
[366235277,1750148200239,-490.0,0.00016438,2]
[366235278,1750148200266,-490.0,0.00016438,2]
[366235279,1750148200290,-490.0,0.00016438,2]
[366235280,1750148200313,-490.0,0.00016438,2]
[366235281,1750148200335,-847.12,0.00016438,2]
[366235282,1750148200358,-490.0,0.00016438,2]
[366235283,1750148200383,-490.0,0.00016438,2]
[366235284,1750148200407,-490.0,0.00016438,2]
[366235285,1750148200431,-490.0,0.00016438,2]
[366235286,1750148200453,-490.0,0.00016438,2]
[366235287,1750148200477,-490.0,0.00016438,2]
[366235288,1750148200499,-490.0,0.00016438,2]
[366235289,1750148200533,-490.0,0.00016438,2]
[366235290,1750148200558,-490.0,0.00016438,2]
[366235291,1750148200584,-490.0,0.00016438,2]
[366235292,1750148200611,-490.0,0.00016438,2]
[366235293,1750148200636,-490.0,0.00016438,2]
[366235294,1750148200662,-490.0,0.00016438,2]
[366235295,1750148200686,-490.0,0.00016438,2]
[366235296,1750148200711,-490.0,0.00016438,2]
[366235297,1750148200734,-490.0,0.00016438,2]
[366235298,1750148200760,-490.0,0.00016438,2]
[366235299,1750148200784,-490.0,0.00016438,2]
[366235300,1750148200806,-490.0,0.00016438,2]
[366235301,1750148200828,-288.80468133,0.00016438,2]
[366235302,1750148200853,-490.0,0.00016438,2]
[366235303,1750148200877,-618.24519925,0.00016438,2]
[366235304,1750148200902,-490.0,0.00016438,2]
[366235305,1750148200927,-490.0,0.00016438,2]
[366235306,1750148200950,-490.0,0.00016438,2]
[366235307,1750148200972,-490.0,0.00016438,2]
[366235308,1750148200999,-490.0,0.00016438,2]
[366235309,1750148201023,-490.0,0.00016438,2]
[366235310,1750148201047,-490.0,0.00016438,2]
[366235311,1750148201071,-509.9448603,0.00016438,2]
[366235312,1750148201094,-490.50628544,0.00016438,2]
[366235313,1750148201116,-490.0,0.00016438,2]
[366235314,1750148201140,-490.0,0.00016438,2]
[366235315,1750148201164,-490.0,0.00016438,2]
[366235316,1750148201186,-490.0,0.00016438,2]
[366235317,1750148201209,-490.0,0.00016438,2]
[366235318,1750148201233,-490.0,0.00016438,2]
[366235319,1750148201259,-490.0,0.00016438,2]
[366235320,1750148201281,-490.0,0.00016438,2]
[366235321,1750148201304,-490.0,0.00016438,2]
[366235322,1750148201328,-490.0,0.00016438,2]
[366235323,1750148201352,-490.0,0.00016438,2]
[366235324,1750148201375,-490.0,0.00016438,2]
[366235325,1750148201399,-490.0,0.00016438,2]
[366235326,1750148201424,-490.0,0.00016438,2]
[366235327,1750148201448,-490.0,0.00016438,2]
[366235328,1750148201473,-490.0,0.00016438,2]
[366235329,1750148201498,-490.0,0.00016438,2]
[366235330,1750148201526,-701.02,0.00016438,2]
[366235331,1750148201551,-490.0,0.00016438,2]
[366235332,1750148201577,-490.0,0.00016438,2]
[366235333,1750148201603,-490.0,0.00016438,2]
[366235334,1750148201627,-424.95793672,0.00016438,2]
[366235335,1750148201651,-494.99706906,0.00016438,2]
[366235336,1750148201677,-490.0,0.00016438,2]
[366235337,1750148201702,-1000.0,0.00016438,2]
[366235338,1750148201726,-356.16297632,0.00016438,2]
[366235339,1750148201750,-490.0,0.00016438,2]
[366235340,1750148201775,-1000.0,0.00016438,2]
[366235341,1750148201798,-1000.0,0.00016438,2]
[366235342,1750148201823,-1000.0,0.00016438,2]
[366235343,1750148201859,-490.0,0.00016438,2]
[366235344,1750148201885,-1000.0,0.00016438,2]
[366235345,1750148201910,-1000.0,0.00016438,2]
[366235346,1750148201934,-1000.0,0.00016438,2]
[366235347,1750148201958,-500.0,0.00016438,2]
[366235348,1750148201982,-513.07576529,0.00016438,2]
[366235349,1750148202006,-490.0,0.00016438,2]
[366235350,1750148202029,-1000.0,0.00016438,2]
[366235351,1750148202052,-1000.0,0.00016438,2]
[366235352,1750148202075,-1037.87628702,0.00016438,2]
[366235353,1750148202099,-490.0,0.00016438,2]
[366235354,1750148202121,-490.0,0.00016438,2]
[366235355,1750148202144,-490.0,0.00016438,2]
[366235356,1750148202166,-490.0,0.00016438,2]
[366235357,1750148202189,-490.0,0.00016438,2]
[366235358,1750148202210,-463.75013435,0.00016438,2]
[366235359,1750148202233,-490.0,0.00016438,2]
[366235360,1750148202256,-490.0,0.00016438,2]
[366235361,1750148202279,-894.33,0.00016438,2]
[366235362,1750148202302,-490.0,0.00016438,2]
[366235363,1750148202324,-490.0,0.00016438,2]
[366235364,1750148202349,-490.0,0.00016438,2]
[366235365,1750148202371,-490.0,0.00016438,2]
[366235366,1750148202393,-490.0,0.00016438,2]
[366235367,1750148202415,-490.0,0.00016438,2]
[366235368,1750148202438,-1048.36,0.00016438,2]
[366235369,1750148202460,-247.56003197,0.00016438,2]
[366235370,1750148202483,-490.0,0.00016438,2]
[366235371,1750148202510,-490.0,0.00016438,2]
[366235372,1750148202533,-490.0,0.00016438,2]
[366235373,1750148202557,-490.0,0.00016438,2]
[366235374,1750148202580,-490.0,0.00016438,2]
[366235375,1750148202607,-490.0,0.00016438,2]
[366235376,1750148202632,-490.0,0.00016438,2]
[366235377,1750148202655,-490.0,0.00016438,2]
[366235378,1750148202680,-491.38643106,0.00016438,2]
[366235379,1750148202704,-490.0,0.00016438,2]
[366235380,1750148202729,-490.0,0.00016438,2]
[366235381,1750148202752,-493.26003811,0.00016438,2]
[366235382,1750148202790,-490.0,0.00016438,2]
[366235383,1750148202814,-490.0,0.00016438,2]
[366235384,1750148202837,-490.0,0.00016438,2]
[366235385,1750148202861,-490.0,0.00016438,2]
[366235386,1750148202886,-469.36178011,0.00016438,2]
[366235387,1750148202909,-490.0,0.00016438,2]
[366235388,1750148202932,-490.0,0.00016438,2]
[366235389,1750148202955,-490.0,0.00016438,2]
[366235390,1750148203217,-490.0,0.00016438,2]
[366235391,1750148203240,-216.34479795,0.00016438,2]
[366235392,1750148203265,-267.37888677,0.00016438,2]
[366235393,1750148203291,-490.0,0.00016438,2]
[366235394,1750148203315,-490.0,0.00016438,2]
[366235395,1750148203338,-461.16897639,0.00016438,2]
[366235396,1750148203363,-463.09274471,0.00016438,2]
[366235397,1750148203385,-490.0,0.00016438,2]
[366235398,1750148203411,-635.46443787,0.00016438,2]
[366235399,1750148203434,-490.0,0.00016438,2]
[366235400,1750148203458,-490.0,0.00016438,2]
[366235401,1750148203484,-490.0,0.00016438,2]
[366235402,1750148203515,-490.0,0.00016438,2]
[366235403,1750148203538,-490.0,0.00016438,2]
[366235404,1750148203565,-490.0,0.00016438,2]
[366235405,1750148203590,-490.0,0.00016438,2]
[366235406,1750148203616,-480.0,0.00016438,2]
[366235407,1750148203641,-490.0,0.00016438,2]
[366235408,1750148203667,-500.0,0.00016438,2]
[366235409,1750148203691,-490.0,0.00016438,2]
[366235410,1750148203716,-460.0,0.00016438,2]
[366235411,1750148203741,-490.0,0.00016438,2]
[366235412,1750148203766,-490.0,0.00016438,2]
[366235413,1750148203792,-687.5,0.00016438,2]
[366235414,1750148203816,-490.0,0.00016438,2]
[366235415,1750148203842,-490.0,0.00016438,2]
[366235416,1750148203865,-490.0,0.00016438,2]
[366235417,1750148204096,-490.0,0.00016438,2]
[366235418,1750148204122,-490.0,0.00016438,2]
[366235419,1750148204146,-490.0,0.00016438,2]
[366235420,1750148204171,-490.0,0.00016438,2]
[366235421,1750148204197,-490.0,0.00016438,2]
[366235422,1750148204222,-490.0,0.00016438,2]
[366235423,1750148204247,-490.0,0.00016438,2]
[366235424,1750148204271,-490.0,0.00016438,2]
[366235425,1750148204297,-490.0,0.00016438,2]
[366235426,1750148204326,-490.0,0.00016438,2]
[366235427,1750148204353,-490.0,0.00016438,2]
[366235428,1750148204379,-492.64604453,0.00016438,2]
[366235429,1750148204407,-490.0,0.00016438,2]
[366235430,1750148204431,-496.25689027,0.00016438,2]
[366235431,1750148204455,-490.0,0.00016438,2]
[366235432,1750148204480,-490.0,0.00016438,2]
[366235433,1750148204505,-490.0,0.00016438,2]
[366235434,1750148204530,-490.0,0.00016438,2]
[366235435,1750148204556,-490.0,0.00016438,2]
[366235436,1750148204580,-490.0,0.00016438,2]
[366235437,1750148204605,-490.0,0.00016438,2]
[366235438,1750148204629,-494.46471504,0.00016438,2]
[366235439,1750148204652,-490.0,0.00016438,2]
[366235440,1750148204679,-500.0,0.00016438,2]
[366235441,1750148204705,-490.0,0.00016438,2]
[366235442,1750148204729,-490.0,0.00016438,2]
[366235443,1750148204757,-491.05,0.00016438,2]
[366235444,1750148204779,-490.0,0.00016438,2]
[366235445,1750148204805,-490.0,0.00016438,2]
[366235446,1750148204828,-490.0,0.00016438,2]
[366235447,1750148204852,-490.0,0.00016438,2]
[366235448,1750148204876,-490.0,0.00016438,2]
[366235449,1750148204900,-500.0,0.00016438,2]
[366235450,1750148204923,-490.0,0.00016438,2]
[366235451,1750148204946,-490.0,0.00016438,2]
[366235452,1750148204968,-276.90554315,0.00016438,2]
[366235453,1750148204994,-490.0,0.00016438,2]
[366235454,1750148205017,-490.0,0.00016438,2]
[366235455,1750148205039,-490.0,0.00016438,2]
[366235456,1750148205061,-490.0,0.00016438,2]
[366235457,1750148205084,-490.0,0.00016438,2]
[366235458,1750148205108,-490.0,0.00016438,2]
[366235459,1750148205131,-1059.34,0.00016438,2]
[366235460,1750148205155,-336.61296527,0.00016438,2]
[366235461,1750148205178,-490.0,0.00016438,2]
[366235462,1750148205201,-490.0,0.00016438,2]
[366235463,1750148205224,-490.0,0.00016438,2]
[366235464,1750148205247,-490.0,0.00016438,2]
[366235465,1750148205272,-490.0,0.00016438,2]
[366235466,1750148205295,-490.0,0.00016438,2]
[366235467,1750148205318,-490.0,0.00016438,2]
[366235468,1750148205341,-490.0,0.00016438,2]
[366235469,1750148205366,-490.0,0.00016438,2]
[366235470,1750148205390,-490.0,0.00016438,2]
[366235471,1750148205414,-491.24434573,0.00016438,2]
[366235472,1750148205439,-490.0,0.00016438,2]
[366235473,1750148205463,-490.0,0.00016438,2]
[366235474,1750148205488,-490.0,0.00016438,2]
[366235475,1750148205517,-536.76,0.00016438,2]
[366235476,1750148205545,-490.0,0.00016438,2]
[366235477,1750148205571,-490.0,0.00016438,2]
[366235478,1750148205598,-490.9836249,0.00016438,2]